bitfinex/quotes_BTCUSD_20251202
["timestamp","ask_amount","ask_price","bid_price","bid_amount"]
[1764704083613,0.00694928,92160.0,92159.0,0.5398624]
[1764704087476,0.01153,92175.0,92165.0,0.21700211]
[1764704087714,0.00058694,92170.0,92169.0,0.21699269]
[1764704089001,0.00158694,92170.0,92169.0,0.21699269]
[1764704089519,0.00158694,92170.0,92169.0,0.25701269]
[1764704089908,0.00158694,92170.0,92169.0,0.28610541]
[1764704090206,0.00158694,92170.0,92169.0,0.23296269]
[1764704090395,0.00158694,92170.0,92169.0,0.21699269]
[1764704091416,0.00058694,92170.0,92169.0,0.25701269]
[1764704091622,0.00158694,92170.0,92169.0,0.25701269]
[1764704093352,0.00187598,92170.0,92169.0,0.25701269]
[1764704095006,0.00187598,92170.0,92169.0,0.24606774]
[1764704095229,0.00187598,92170.0,92169.0,0.21699269]
[1764704096085,0.00115236,92170.0,92169.0,0.21699269]
[1764704097605,0.00115236,92170.0,92169.0,0.24606799]
[1764704098222,0.00115236,92170.0,92169.0,0.21699269]
[1764704098449,0.00115236,92170.0,92169.0,0.24607394]
[1764704098816,0.00115236,92170.0,92169.0,0.25749394]
[1764704099018,0.00115236,92170.0,92169.0,0.27346394]
[1764704099366,0.00115236,92170.0,92169.0,0.24438269]
[1764704099531,0.00115236,92170.0,92169.0,0.22841269]
[1764704100324,0.00115236,92170.0,92169.0,0.26843269]
[1764704100926,0.00042874,92170.0,92169.0,0.24438269]
[1764704101385,0.00042874,92170.0,92169.0,0.28320171]
[1764704102332,0.00042874,92170.0,92169.0,0.24438269]
[1764704102950,0.00042874,92170.0,92169.0,2.59143269]
[1764704103206,0.0002,92200.0,92169.0,2.59143269]
[1764704103207,0.0002,92200.0,92199.0,0.21692209]
[1764704103495,0.00031608,92200.0,92199.0,0.56405209]
[1764704103647,0.00031608,92200.0,92199.0,0.58810209]
[1764704103990,0.00118284,92200.0,92199.0,0.56405209]
[1764704104192,0.00118284,92200.0,92199.0,0.25566172]
[1764704104441,0.00118284,92200.0,92199.0,0.24597142]
[1764704104672,0.00118284,92200.0,92199.0,0.21692209]
[1764704105025,0.00118284,92200.0,92199.0,0.24597142]
[1764704105428,0.00118284,92200.0,92199.0,0.21692209]
[1764704106626,0.00218284,92200.0,92199.0,0.21692209]
[1764704106830,0.00218284,92200.0,92199.0,0.24596038]
[1764704107029,0.00218284,92200.0,92197.0,0.01084633]
[1764704107030,0.02874284,92200.0,92197.0,0.01084633]
[1764704107240,0.01503,92198.0,92197.0,0.21692679]
[1764704107638,0.03915,92198.0,92197.0,0.21692679]
[1764704107880,0.01503,92198.0,92197.0,0.24596508]
[1764704108706,0.01503,92198.0,92197.0,0.21692679]
[1764704108857,0.01284608,92200.0,92199.0,0.21692209]
[1764704109068,0.00031608,92200.0,92199.0,0.21692209]
[1764704109699,0.00031608,92200.0,92199.0,0.24594529]
[1764704109871,0.00031608,92200.0,92199.0,0.57905209]
[1764704110263,0.00031608,92200.0,92199.0,0.55650209]
[1764704110664,0.00031608,92200.0,92199.0,0.53992209]
[1764704111567,0.00131608,92200.0,92199.0,0.53992209]
[1764704112596,0.04046608,92200.0,92199.0,0.21692209]
[1764704112990,0.01721284,92200.0,92199.0,0.21692209]
[1764704114012,0.01721284,92200.0,92195.0,0.01084657]
[1764704114013,0.04133284,92200.0,92194.0,0.02901586]
[1764704114259,0.04133284,92200.0,92189.0,0.02901586]
[1764704114260,0.0428844,92195.0,92189.0,0.02901586]
[1764704114468,0.0428844,92195.0,92179.0,0.06953563]
[1764704114469,0.21694797,92188.0,92187.0,0.02901586]
[1764704114599,0.21695503,92185.0,92181.0,0.02901586]
[1764704114782,0.02085,92182.0,92179.0,0.01084845]
[1764704114989,0.02412,92181.0,92180.0,0.2169662]
[1764704115586,0.03915,92181.0,92180.0,0.2169662]
[1764704115929,0.01503,92181.0,92180.0,0.2169662]
[1764704116354,0.03915,92181.0,92180.0,0.2179662]
[1764704116711,0.00582,92182.0,92181.0,0.21696445]
[1764704116955,0.02412,92181.0,92180.0,0.001]
[1764704117131,0.03915,92181.0,92180.0,0.2179668]
[1764704117334,0.25611445,92181.0,92180.0,0.001]
[1764704117775,0.0554744,92181.0,92179.0,0.21696806]
[1764704117934,0.02412,92180.0,92179.0,0.21696806]
[1764704118136,0.03915,92180.0,92175.0,0.22782724]
[1764704118455,0.03915,92180.0,92172.0,0.25685056]
[1764704118456,0.02659,92176.0,92172.0,0.25685056]
[1764704118664,0.01156,92176.0,92173.0,0.01084916]
[1764704118863,0.02412,92175.0,92174.0,0.21697934]
[1764704119475,0.03915,92175.0,92174.0,0.21697934]
[1764704119843,0.03915,92175.0,92172.0,0.01084928]
[1764704120012,0.01503,92173.0,92172.0,0.01084928]
[1764704120235,0.03915,92173.0,92172.0,0.22783491]
[1764704120574,0.03915,92173.0,92172.0,0.22883491]
[1764704120962,0.03915,92173.0,92172.0,0.001]
[1764704121177,0.03915,92173.0,92170.0,0.01084951]
[1764704121379,0.01503,92173.0,92172.0,0.21798563]
[1764704121598,0.01156,92176.0,92175.0,0.21697857]
[1764704122001,0.02659,92176.0,92175.0,0.21697857]
[1764704122318,0.05071,92176.0,92175.0,0.21697857]
[1764704122959,0.06787,92176.0,92175.0,0.21697857]
[1764704123146,0.06787,92176.0,92170.0,0.01084951]
[1764704123147,0.21699366,92169.0,92167.0,0.02901586]
[1764704123337,0.02659,92168.0,92167.0,0.22784688]
[1764704123856,0.05071,92168.0,92167.0,0.22784688]
[1764704124681,0.05071,92168.0,92167.0,0.22884688]
[1764704126533,0.02659,92168.0,92167.0,0.22884688]
[1764704127799,0.02872,92176.0,92175.0,0.21697857]
[1764704127991,0.02883601,92176.0,92175.0,0.21697857]
[1764704129644,0.00011601,92176.0,92175.0,0.23355857]
[1764704129843,0.00011601,92176.0,92175.0,0.23455857]
[1764704130175,0.0404472,92185.0,92179.0,0.22781758]
[1764704130377,0.01503,92180.0,92179.0,0.2278176]
[1764704130775,0.03915,92180.0,92179.0,0.2278176]
[1764704132852,0.0163272,92185.0,92184.0,0.21695738]
[1764704133434,0.0313572,92185.0,92184.0,0.21695738]
[1764704134256,0.0163272,92185.0,92184.0,0.21695738]
[1764704134456,0.01156,92188.0,92187.0,0.21695032]
[1764704134694,0.05284,92188.0,92187.0,0.21695032]
[1764704134892,0.06787,92188.0,92187.0,0.21695032]
[1764704135055,0.06787,92188.0,92185.0,0.22780173]
[1764704135261,0.01503,92186.0,92185.0,0.01084775]
[1764704135658,0.03915,92186.0,92185.0,0.22780278]
[1764704135861,0.01526116,92186.0,92185.0,0.22780278]
[1764704136404,0.03958116,92186.0,92185.0,0.22780278]
[1764704136763,0.03958116,92186.0,92185.0,0.22880278]
[1764704137368,0.27833384,92186.0,92185.0,0.001]
[1764704138616,0.0218,92170.0,92169.0,0.01084963]
[1764704138785,0.0218,92170.0,92169.0,0.22822926]
[1764704138983,0.06264,92170.0,92169.0,0.22822926]
[1764704139392,0.06264,92170.0,92169.0,0.00038694]
[1764704139807,0.06264,92170.0,92169.0,0.00138694]
[1764704140211,0.06264,92170.0,92169.0,0.21837963]
[1764704140595,0.06264,92170.0,92169.0,0.00138694]
[1764704140794,0.27963034,92170.0,92169.0,0.00138694]
[1764704141575,0.27963034,92170.0,92169.0,0.00038694]
[1764704142019,0.27963034,92170.0,92169.0,0.00138694]
[1764704143067,0.27963034,92170.0,92169.0,0.00038694]
[1764704144641,0.25783034,92170.0,92169.0,0.00038694]
[1764704144843,0.27963034,92170.0,92169.0,0.00038694]
[1764704150631,0.0218,92154.0,92148.0,0.0108521]
[1764704150819,0.04158,92153.0,92151.0,0.22788682]
[1764704151161,0.02583,92149.0,92148.0,0.22801025]
[1764704151518,0.05025,92149.0,92148.0,0.22801025]
[1764704151958,0.05025,92149.0,92148.0,0.00011601]
[1764704152111,0.05025,92149.0,92148.0,0.21715815]
[1764704153079,0.00962,92151.0,92150.0,0.21703743]
[1764704153333,0.24142771,92163.0,92159.0,0.21701574]
[1764704153557,0.02442,92163.0,92160.0,0.21701388]
[1764704153806,0.03404,92161.0,92160.0,0.21701388]
[1764704154229,0.06741,92161.0,92158.0,0.01085092]
[1764704154454,0.0512,92161.0,92160.0,0.21701388]
[1764704154667,0.00962,92161.0,92160.0,0.21701388]
[1764704155306,0.02583,92161.0,92160.0,0.21701388]
[1764704156495,0.02583,92161.0,92158.0,0.22886739]
[1764704156698,0.01621,92160.0,92158.0,0.21701746]
[1764704156896,0.02706081,92159.0,92152.0,0.36286749]
[1764704157114,0.01621,92153.0,92151.0,0.01085175]
[1764704157307,0.21703743,92150.0,92146.0,0.02901586]
[1764704157659,0.02583,92149.0,92148.0,0.22801025]
[1764704158043,0.02717532,92158.0,92157.0,0.21702095]
[1764704158044,0.0259444,92158.0,92157.0,0.21702095]
[1764704158359,0.0259444,92158.0,92156.0,0.21702185]
[1764704158582,0.01621,92157.0,92156.0,0.21702185]
[1764704159151,0.01716,92164.0,92160.0,0.21701388]
[1764704160423,0.01716,92163.0,92160.0,0.21701388]
[1764704160758,0.01084963,92169.0,92160.0,0.21701388]
[1764704160961,0.01716,92164.0,92160.0,0.21901388]
[1764704161168,0.00578,92171.0,92168.0,0.01084975]
[1764704161530,0.01716,92177.0,92175.0,0.01084892]
[1764704161705,0.01716,92177.0,92176.0,0.21697621]
[1764704161843,0.0077,92185.0,92184.0,0.21695738]
[1764704162046,0.01104598,92200.0,92185.0,0.21695503]
[1764704162047,0.02442,92198.0,92185.0,0.21695503]
[1764704162269,0.01716,92189.0,92185.0,0.21695503]
[1764704162476,0.02486,92189.0,92185.0,0.21695503]
[1764704162882,0.00061803,92186.0,92185.0,0.21695503]
[1764704163297,0.21696532,92181.0,92178.0,0.22781909]
[1764704163620,0.22780524,92184.0,92181.0,0.22781227]
[1764704163826,0.01084786,92184.0,92182.0,0.21696152]
[1764704164146,0.24599541,92186.0,92183.0,0.21695974]
[1764704164356,0.00161803,92186.0,92185.0,0.21695503]
[1764704164564,0.00061803,92186.0,92185.0,0.23347503]
[1764704164770,0.00061803,92186.0,92185.0,2.58033503]
[1764704165237,0.00361803,92186.0,92185.0,2.58033503]
[1764704165423,0.00061803,92186.0,92185.0,2.58033503]
[1764704165788,0.00361803,92186.0,92185.0,2.58033503]
[1764704166187,0.00361803,92186.0,92185.0,0.53995503]
[1764704166611,0.00461803,92186.0,92185.0,0.53995503]
[1764704167015,0.00461803,92186.0,92185.0,0.55525503]
[1764704167422,0.00461803,92186.0,92185.0,0.58018503]
[1764704168483,0.00461803,92186.0,92185.0,0.60914801]
[1764704169059,0.00461803,92186.0,92185.0,0.56891801]
[1764704169254,0.00461803,92186.0,92185.0,0.53995503]
[1764704169875,0.00461803,92186.0,92185.0,0.55525503]
[1764704171834,0.00461803,92186.0,92185.0,0.323]
[1764704172855,0.00461803,92186.0,92185.0,2.36323]
[1764704174287,0.00461803,92186.0,92185.0,2.58018503]
[1764704174871,0.00361803,92186.0,92185.0,2.58018503]
[1764704175270,0.00461803,92186.0,92185.0,2.58018503]
[1764704175670,0.00361803,92186.0,92185.0,2.58018503]
[1764704176091,0.00461803,92186.0,92185.0,2.58018503]
[1764704178320,0.00461803,92186.0,92185.0,2.25718503]
[1764704179544,0.00461803,92186.0,92185.0,2.23225503]
[1764704179747,0.00461803,92186.0,92185.0,2.25718503]
[1764704180976,0.00461803,92186.0,92185.0,2.23225503]
[1764704181448,0.00461803,92186.0,92185.0,2.25718503]
[1764704182236,0.00461803,92186.0,92185.0,0.22903503]
[1764704182659,0.00461803,92186.0,92185.0,0.21695503]
[1764704183208,0.00461803,92186.0,92185.0,2.25718503]
[1764704184268,0.00461803,92186.0,92185.0,2.58018503]
[1764704185123,0.00461803,92186.0,92185.0,2.60919578]
[1764704185342,0.00461803,92186.0,92185.0,2.58018503]
[1764704187016,0.00161803,92186.0,92185.0,2.58018503]
[1764704187217,0.00061803,92186.0,92185.0,2.58018503]
[1764704187498,0.00461803,92186.0,92185.0,2.58018503]
[1764704187696,0.00561803,92186.0,92185.0,2.58018503]
[1764704188244,0.00561803,92186.0,92185.0,2.63830066]
[1764704188845,0.00561803,92186.0,92185.0,2.58018503]
[1764704190270,0.00561803,92186.0,92185.0,2.55525503]
[1764704190477,0.00561803,92186.0,92185.0,0.53995503]
[1764704191303,0.00561803,92186.0,92185.0,0.5981426]
[1764704191507,0.00561803,92186.0,92185.0,0.53995503]
[1764704192990,0.00561803,92186.0,92185.0,0.58018503]
[1764704193611,0.00561803,92186.0,92185.0,0.57318503]
[1764704200228,0.00561803,92186.0,92185.0,0.57155503]
[1764704201960,0.00561803,92186.0,92185.0,2.57155503]
[1764704202491,0.00561803,92186.0,92185.0,2.78047802]
[1764704202673,0.0002,92200.0,92199.0,2.53992209]
[1764704202889,0.0002,92200.0,92199.0,2.55598209]
[1764704203005,0.0002,92200.0,92199.0,2.57928209]
[1764704204318,0.0022,92200.0,92199.0,2.55561209]
[1764704208345,0.00260446,92200.0,92199.0,2.55561209]
[1764704209092,0.00260446,92200.0,92199.0,2.76453508]
[1764704210336,0.00260446,92200.0,92199.0,2.71917209]
[1764704210748,0.00260446,92200.0,92199.0,2.70201209]
[1764704210999,0.00260446,92200.0,92199.0,2.71917209]
[1764704219374,0.00260446,92200.0,92199.0,2.79646435]
[1764704219600,0.00060446,92200.0,92199.0,2.79646435]
[1764704219983,0.00060446,92200.0,92199.0,2.71917209]
[1764704220408,0.0002,92220.0,92199.0,2.71917209]
[1764704220409,1e-08,92210.0,92209.0,2.62923155]
[1764704220610,0.0002,92220.0,92209.0,2.62923155]
[1764704220611,0.0002,92220.0,92219.0,2.53987504]
[1764704220808,0.00031601,92220.0,92219.0,2.57309504]
[1764704221030,0.00031601,92220.0,92219.0,2.59639504]
[1764704223021,0.00231601,92220.0,92219.0,2.59639504]
[1764704223852,0.00331601,92220.0,92219.0,2.59639504]
[1764704224246,0.00231601,92220.0,92219.0,2.59639504]
[1764704224625,0.00331601,92220.0,92219.0,2.59639504]
[1764704224815,0.00331601,92220.0,92219.0,2.57923504]
[1764704225193,0.00331601,92220.0,92219.0,2.57918504]
[1764704225407,0.00331601,92220.0,92219.0,0.55588504]
[1764704225607,0.00331601,92220.0,92219.0,0.23288504]
[1764704225845,0.00331601,92220.0,92219.0,0.26185004]
[1764704226056,0.00331601,92220.0,92219.0,0.56879004]
[1764704226270,0.01817364,92220.0,92219.0,0.028965]
[1764704226472,0.04290364,92220.0,92218.0,0.21687691]
[1764704226671,0.02704601,92220.0,92218.0,0.21687691]
[1764704226908,0.01628,92219.0,92218.0,0.21687691]
[1764704227188,0.01682875,92219.0,92218.0,0.21687691]
[1764704228029,0.01682875,92219.0,92214.0,0.01084434]
[1764704228030,0.0218,92218.0,92214.0,0.01084434]
[1764704228204,0.0163244,92216.0,92215.0,0.01084422]
[1764704228439,0.01127746,92215.0,92209.0,0.028965]
[1764704228625,0.0163244,92216.0,92211.0,0.22773706]
[1764704228626,0.01628,92214.0,92211.0,0.22773706]
[1764704228772,0.0410544,92216.0,92213.0,0.01084445]
[1764704228974,0.02473,92215.0,92213.0,0.21688858]
[1764704229203,0.02494,92214.0,92211.0,0.01084469]
[1764704229573,0.00866,92214.0,92212.0,0.21689122]
[1764704229778,0.03339,92214.0,92212.0,0.21689122]
[1764704230171,0.04101,92213.0,92212.0,0.21689122]
[1764704230730,0.04101,92213.0,92211.0,0.01084469]
[1764704230938,0.04101,92212.0,92211.0,0.22773712]
[1764704231681,0.04101,92212.0,92208.0,0.25670902]
[1764704232007,0.0218,92208.0,92207.0,0.2169023]
[1764704232161,0.01628,92208.0,92207.0,0.2169023]
[1764704232359,0.04101,92208.0,92207.0,0.2169023]
[1764704232767,0.00866,92214.0,92213.0,0.21688915]
[1764704233727,0.02494,92214.0,92213.0,0.21688915]
[1764704234261,0.02494,92214.0,92213.0,0.22088915]
[1764704234466,0.04967,92214.0,92213.0,0.005]
[1764704234691,0.05007436,92214.0,92213.0,0.005]
[1764704234866,0.26696116,92214.0,92213.0,0.005]
[1764704235071,0.28876116,92214.0,92213.0,0.005]
[1764704235797,0.28876116,92214.0,92213.0,0.004]
[1764704236094,0.21691037,92204.0,92200.0,0.01084598]
[1764704236296,0.01084504,92208.0,92203.0,0.01084563]
[1764704236474,0.01084504,92208.0,92203.0,0.22775692]
[1764704236825,0.01712,92209.0,92206.0,0.21690562]
[1764704236826,0.02473,92207.0,92206.0,0.21690562]
[1764704236958,0.04967,92207.0,92206.0,0.21690562]
[1764704237164,0.04967,92207.0,92204.0,0.01084551]
[1764704237366,0.23319024,92205.0,92201.0,0.01084586]
[1764704237615,0.01628,92202.0,92201.0,0.22776324]
[1764704238016,0.01628,92202.0,92198.0,0.54995066]
[1764704238235,0.01628,92199.0,92198.0,0.21692444]
[1764704238654,0.01610283,92199.0,92198.0,0.21692444]
[1764704239060,0.04083283,92199.0,92198.0,0.21692444]
[1764704239470,0.01610283,92199.0,92198.0,0.21692444]
[1764704239827,0.01710283,92199.0,92198.0,0.21692444]
[1764704240023,0.02010283,92199.0,92198.0,0.21692444]
[1764704241576,0.02010283,92199.0,92197.0,0.21692557]
[1764704241784,0.01628,92198.0,92197.0,0.21692557]
[1764704242395,0.01084645,92196.0,92190.0,0.03981216]
[1764704242600,0.02485,92191.0,92190.0,0.22779042]
[1764704242802,0.00857,92191.0,92190.0,0.22779042]
[1764704243244,0.002,92198.0,92196.0,0.21692915]
[1764704243445,0.00857,92204.0,92203.0,0.21691268]
[1764704243784,0.02496599,92204.0,92203.0,0.21691268]
[1764704243991,0.04969599,92204.0,92203.0,0.21691268]
[1764704244296,0.02496599,92204.0,92203.0,0.21691268]
[1764704244484,0.00868599,92204.0,92201.0,0.01084586]
[1764704244694,0.00868599,92204.0,92203.0,0.21691268]
[1764704244695,0.02496599,92204.0,92203.0,0.21691268]
[1764704245694,0.04969599,92204.0,92203.0,0.21691268]
[1764704245894,0.04969599,92204.0,92203.0,0.22191268]
[1764704246149,0.04969599,92204.0,92203.0,0.22291268]
[1764704247467,0.26660631,92204.0,92203.0,0.006]
[1764704248241,0.28840631,92204.0,92203.0,0.006]
[1764704248680,0.28840631,92204.0,92187.0,0.01084751]
[1764704248681,0.01084692,92192.0,92187.0,0.01084751]
[1764704248889,0.02473,92191.0,92189.0,0.21694562]
[1764704249286,0.01628,92190.0,92189.0,0.5507929]
[1764704249550,0.02485,92190.0,92189.0,0.323]
[1764704249968,0.04958,92190.0,92189.0,0.323]
[1764704250175,0.26652326,92190.0,92189.0,0.328]
[1764704250472,0.04958,92190.0,92189.0,0.323]
[1764704250661,0.26652326,92190.0,92189.0,0.329]
[1764704251210,0.07138,92190.0,92189.0,0.006]
[1764704251614,0.04958,92190.0,92189.0,0.007]
[1764704251971,0.26652326,92190.0,92189.0,0.007]
[1764704252147,0.04958,92190.0,92189.0,0.22394562]
[1764704252323,0.02485,92190.0,92189.0,0.22394562]
[1764704252513,0.00857,92190.0,92189.0,0.22394562]
[1764704253167,0.01716,92195.0,92194.0,0.21693385]
[1764704253168,0.02573,92195.0,92194.0,0.21693385]
[1764704254876,0.02573,92195.0,92194.0,0.21793385]
[1764704255085,0.02573,92195.0,92194.0,0.22293385]
[1764704256073,0.01716,92200.0,92199.0,0.21692209]
[1764704258155,0.01716,92200.0,92199.0,0.22192209]
[1764704260077,0.00868599,92204.0,92203.0,0.21691268]
[1764704260078,0.00011599,92204.0,92203.0,0.21691268]
[1764704260290,0.00011599,92204.0,92203.0,0.55623268]
[1764704260433,0.00011599,92204.0,92203.0,0.57983268]
[1764704260640,0.00011599,92204.0,92203.0,0.6185863]
[1764704261238,0.00311599,92204.0,92203.0,0.6185863]
[1764704261955,0.00411599,92204.0,92203.0,0.57983268]
[1764704265356,0.00411599,92204.0,92203.0,2.57983268]
[1764704267013,0.00011599,92204.0,92203.0,2.57983268]
[1764704267171,0.00111599,92204.0,92203.0,2.57983268]
[1764704267373,0.00211599,92204.0,92203.0,2.58417446]
[1764704269423,0.00211599,92204.0,92203.0,2.66385745]
[1764704269685,0.00211599,92204.0,92203.0,2.7411203]
[1764704269910,0.00211599,92204.0,92203.0,2.66385745]
[1764704270132,0.00111599,92204.0,92203.0,2.66385745]
[1764704270596,0.00023108,92208.0,92207.0,2.60242626]
[1764704270824,0.00023108,92208.0,92207.0,2.61874626]
[1764704271004,0.00023108,92208.0,92207.0,2.64234626]
[1764704271247,0.00023108,92208.0,92207.0,2.64668741]
[1764704273442,0.00123108,92208.0,92207.0,2.72389522]
[1764704273666,0.00123108,92208.0,92207.0,2.64668741]
[1764704274405,0.00123108,92208.0,92207.0,2.72385298]
[1764704274606,1e-08,92208.0,92207.0,2.64668741]
[1764704274811,0.0002,92220.0,92219.0,2.53987504]
[1764704275013,0.0002,92230.0,92229.0,2.60237452]
[1764704275243,0.00027965,92230.0,92229.0,2.63023452]
[1764704275392,0.00027965,92230.0,92229.0,2.67961452]
[1764704276551,0.00127965,92230.0,92229.0,2.67961452]
[1764704277000,0.00227965,92230.0,92229.0,2.66249452]
[1764704277209,0.00227965,92230.0,92229.0,2.67961452]
[1764704278451,0.00227965,92230.0,92229.0,2.59997153]
[1764704278649,0.00227965,92230.0,92229.0,2.61709153]
[1764704280242,0.00227965,92230.0,92229.0,2.65564577]
[1764704280867,0.00227965,92230.0,92229.0,2.71816876]
[1764704281120,0.00291494,92230.0,92229.0,2.71816876]
[1764704282090,0.00291494,92230.0,92229.0,2.67961452]
[1764704283171,0.00291494,92230.0,92229.0,2.71811959]
[1764704283428,0.00291494,92230.0,92229.0,2.68405452]
[1764704283777,0.0002,92240.0,92239.0,0.21682802]
[1764704283992,0.0002,92240.0,92239.0,2.62825082]
[1764704284190,0.0002,92240.0,92239.0,2.60656802]
[1764704284711,0.0002,92240.0,92239.0,2.66909101]
[1764704285088,0.0002,92240.0,92239.0,2.67109101]
[1764704285288,0.0002,92240.0,92239.0,2.72680358]
[1764704285485,0.0002,92240.0,92239.0,2.66909101]
[1764704285686,0.0002,92240.0,92239.0,2.67009101]
[1764704285888,0.0002,92240.0,92239.0,2.72780358]
[1764704286164,0.0002,92240.0,92239.0,2.71068358]
[1764704286365,0.0002,92240.0,92239.0,2.67009101]
[1764704287170,0.0002,92240.0,92239.0,2.60756802]
[1764704287344,0.0002,92240.0,92239.0,0.22752802]
[1764704287525,0.0002,92240.0,92239.0,0.24921082]
[1764704288021,0.0002,92240.0,92239.0,0.21782802]
[1764704288635,0.0002,92240.0,92239.0,0.21682802]
[1764704288814,0.0012,92240.0,92239.0,0.21682802]
[1764704289221,0.02646,92240.0,92239.0,0.21682802]
[1764704289423,0.02674871,92240.0,92239.0,0.21682802]
[1764704289842,0.02674871,92240.0,92237.0,0.01084163]
[1764704289843,0.05039871,92240.0,92237.0,0.01084163]
[1764704290095,0.01666,92238.0,92237.0,0.2276728]
[1764704290305,0.01689097,92238.0,92237.0,0.2276728]
[1764704291489,0.01889097,92238.0,92237.0,0.2276728]
[1764704292486,0.01989097,92238.0,92237.0,0.2276728]
[1764704294379,0.01989097,92238.0,92229.0,0.00444]
[1764704294380,0.01084175,92236.0,92229.0,0.00444]
[1764704294733,0.0163244,92233.0,92231.0,0.22768863]
[1764704295053,0.26477626,92232.0,92229.0,0.00444]
[1764704295285,0.03846,92230.0,92229.0,0.00444]
[1764704295703,0.06111,92230.0,92229.0,0.00444]
[1764704296359,0.06111,92230.0,92229.0,0.00544]
[1764704296563,0.03931,92230.0,92229.0,0.00544]
[1764704297116,0.00862,92232.0,92230.0,0.21684918]
[1764704297334,0.01712,92239.0,92236.0,0.21683439]
[1764704297541,0.02528,92230.0,92229.0,0.01144]
[1764704297774,0.00862,92230.0,92229.0,0.01144]
[1764704297975,0.00862,92230.0,92229.0,0.00444]
[1764704298394,0.0163244,92231.0,92230.0,0.21684918]
[1764704299719,0.0329844,92231.0,92230.0,0.21684918]
[1764704300715,0.0556344,92231.0,92230.0,0.006]
[1764704300949,0.0556344,92231.0,92230.0,0.007]
[1764704301142,0.05537802,92231.0,92230.0,0.007]
[1764704301575,0.27222485,92231.0,92230.0,0.007]
[1764704301726,0.27222485,92231.0,92230.0,0.005]
[1764704302133,0.00023097,92238.0,92235.0,0.01084187]
[1764704302331,0.00023097,92238.0,92237.0,0.21683272]
[1764704302715,0.01689097,92238.0,92237.0,0.21683272]
[1764704303566,0.01689097,92238.0,92236.0,0.21683507]
[1764704303740,0.01666,92237.0,92235.0,0.22183604]
[1764704303944,0.01666,92237.0,92236.0,0.21683507]
[1764704305223,0.21683507,92236.0,92235.0,0.006]
[1764704305437,0.23349507,92236.0,92235.0,0.005]
[1764704305862,0.25614507,92236.0,92235.0,0.005]
[1764704306197,0.2276816,92235.0,92231.0,0.22768911]
[1764704306397,0.01666,92232.0,92231.0,0.22768911]
[1764704307117,0.21684918,92230.0,92229.0,0.00444]
[1764704307281,0.23350918,92230.0,92229.0,0.00444]
[1764704307485,0.25615918,92230.0,92229.0,0.00444]
[1764704308131,0.27795918,92230.0,92229.0,0.01044]
[1764704308925,0.25615918,92230.0,92229.0,0.01144]
[1764704309132,0.27795918,92230.0,92229.0,0.01144]
[1764704309506,0.27795918,92230.0,92229.0,0.00544]
[1764704309706,0.27795918,92230.0,92229.0,0.00944]
[1764704310518,0.27795918,92230.0,92229.0,0.00844]
[1764704310903,0.27795918,92230.0,92229.0,0.00944]
[1764704311480,0.25615918,92230.0,92229.0,0.00944]
[1764704311691,0.27795918,92230.0,92229.0,0.00844]
[1764704311904,0.2168924,92212.0,92210.0,0.00103337]
[1764704312085,0.0860544,92211.0,92210.0,0.00111302]
[1764704312288,0.0642544,92211.0,92210.0,0.00111302]
[1764704312892,0.0249444,92211.0,92210.0,0.00111302]
[1764704313098,0.0163244,92219.0,92218.0,0.21687716]
[1764704313411,0.0334444,92219.0,92218.0,0.21687716]
[1764704313756,0.0329844,92219.0,92218.0,0.21687716]
[1764704313947,0.02574,92220.0,92218.0,0.21687716]
[1764704314231,0.00862,92220.0,92218.0,0.21687716]
[1764704314662,0.01712,92225.0,92224.0,0.21686328]
[1764704315621,0.0163244,92233.0,92224.0,0.21686328]
[1764704315622,0.0163244,92233.0,92230.0,0.22769163]
[1764704315823,0.0163244,92233.0,92232.0,0.21684447]
[1764704317065,0.0203244,92233.0,92232.0,0.21684447]
[1764704317647,0.0213244,92233.0,92232.0,0.21684447]
[1764704318577,0.0376044,92233.0,92232.0,0.21684447]
[1764704319045,0.0614544,92233.0,92232.0,0.21684447]
[1764704319598,0.0614544,92233.0,92231.0,0.21684463]
[1764704319800,0.04013,92232.0,92231.0,0.21684463]
[1764704321531,0.01728,92232.0,92231.0,0.21684463]
[1764704321734,0.04113,92232.0,92231.0,0.21684463]
[1764704322089,0.04513,92232.0,92231.0,0.21684463]
[1764704323061,0.04513,92232.0,92231.0,0.21684683]
[1764704324459,0.04513,92232.0,92226.0,0.02895334]
[1764704324661,0.0412244,92227.0,92226.0,0.22770146]
[1764704325215,0.0650744,92227.0,92226.0,0.22770146]
[1764704325420,0.0650744,92227.0,92226.0,0.21685858]
[1764704326220,0.0680744,92227.0,92226.0,0.21685858]
[1764704326747,0.0442244,92227.0,92226.0,0.21685858]
[1764704326947,0.0452244,92227.0,92226.0,0.21685858]
[1764704329663,0.0452244,92227.0,92226.0,0.21495858]
[1764704333046,0.0289444,92227.0,92226.0,0.21495858]
[1764704336443,0.0452244,92227.0,92226.0,0.21685858]
[1764704336640,0.05275,92227.0,92226.0,0.21685858]
[1764704336856,0.01262,92227.0,92226.0,0.21685858]
[1764704337997,0.004,92227.0,92226.0,0.27738443]
[1764704338195,0.004,92227.0,92226.0,0.23257858]
[1764704338439,0.004,92227.0,92226.0,0.55557858]
[1764704340137,0.004,92227.0,92226.0,0.57869858]
[1764704342152,0.004,92227.0,92226.0,0.61361411]
[1764704342518,0.004,92227.0,92226.0,0.53985858]
[1764704342870,0.04413,92227.0,92225.0,0.21686046]
[1764704343071,0.02785,92227.0,92225.0,0.21686046]
[1764704343272,0.04013,92226.0,92225.0,0.21686046]
[1764704344890,0.04413,92226.0,92225.0,0.21686046]
[1764704345156,0.04413,92226.0,92225.0,0.24588267]
[1764704345587,0.04413,92226.0,92225.0,0.2458956]
[1764704345796,0.02028,92226.0,92225.0,0.2458964]
[1764704346031,0.004,92226.0,92225.0,0.2458964]
[1764704346283,0.01911,92226.0,92224.0,0.22770452]
[1764704346562,0.01511,92225.0,92224.0,0.25674089]
[1764704346919,0.03761,92225.0,92224.0,0.25674089]
[1764704347591,0.004,92226.0,92225.0,2.323]
[1764704347592,0.001,92226.0,92225.0,2.323]
[1764704347792,0.004,92226.0,92225.0,2.42362299]
[1764704348097,0.00023097,92238.0,92236.0,2.0]
[1764704348298,0.00023097,92238.0,92237.0,2.34983]
[1764704348440,0.00023097,92238.0,92237.0,2.37275]
[1764704348637,0.00023097,92238.0,92237.0,2.4307918]
[1764704349036,0.00023097,92238.0,92237.0,2.37275]
[1764704350113,0.00023097,92238.0,92237.0,2.58958272]
[1764704350526,0.00223097,92238.0,92237.0,2.58958272]
[1764704350699,0.00023097,92238.0,92237.0,2.58958272]
[1764704352564,0.00023097,92238.0,92237.0,2.65210571]
[1764704354321,0.0002,92280.0,92267.0,0.21676222]